fUST/lending_fUST_20250215
["ID","MTS","AMOUNT","RATE_DAILY","PERIOD"]
[353171859,1739626232900,-1717.46,8.904e-05,2]
[353171861,1739626232910,-1639.95,8.904e-05,2]
[353171863,1739626232920,-500.0,8.904e-05,2]
[353171866,1739626232929,-505.64,8.904e-05,2]
[353171868,1739626232938,-2429.29,8.904e-05,2]
[353171869,1739626232947,-4532.89,8.904e-05,2]
[353171871,1739626232956,-500.0,8.904e-05,2]
[353171873,1739626232968,-1221.15,8.904e-05,2]
[353171875,1739626232977,-500.0,8.904e-05,2]
[353171877,1739626232986,-500.0,8.905e-05,2]
[353171879,1739626232995,-500.0,8.905e-05,2]
[353171881,1739626233005,-512.0,8.905e-05,2]
[353171883,1739626233014,-519.87479579,8.905e-05,2]
[353171885,1739626233024,-604.67824573,8.905e-05,2]
[353171886,1739626233034,-500.0,8.905e-05,2]
[353171887,1739626233043,-500.0,8.905e-05,2]
[353171889,1739626233053,-500.0,8.905e-05,2]
[353171891,1739626233063,-526.9706818,8.905e-05,2]
[353171892,1739626233072,-500.0,8.905e-05,2]
[353171893,1739626233082,-500.0,8.905e-05,2]
[353171894,1739626233091,-613.29,8.905e-05,2]
[353171895,1739626233100,-500.0,8.905e-05,2]
[353171896,1739626233110,-500.0,8.905e-05,2]
[353171897,1739626233120,-500.0,8.905e-05,2]
[353171898,1739626233129,-500.0,8.905e-05,2]
[353171899,1739626233139,-630.69117156,8.905e-05,2]
[353171900,1739626233148,-500.0,8.905e-05,2]
[353171901,1739626233158,-500.0,8.905e-05,2]
[353171902,1739626233167,-180.02683681,8.905e-05,2]
[353171903,1739626233187,-500.0,8.904e-05,2]
[353171904,1739626233196,-45.15816962,8.905e-05,2]
[353171952,1739626238497,-500.0,8.904e-05,2]
[353171954,1739626238507,-274.81499357,8.905e-05,2]
[353171956,1739626238516,-773.5,8.905e-05,2]
[353171958,1739626238526,-298.9903019,8.905e-05,2]
[353172016,1739626240629,-927.16,8.904e-05,2]
[353172019,1739626240645,-500.0,8.904e-05,2]
[353172022,1739626240663,-201.0096981,8.905e-05,2]
[353172025,1739626240682,-682.29,8.905e-05,2]
[353172028,1739626240700,-663.05,8.905e-05,2]
[353172030,1739626240716,-160.86666227,8.905e-05,2]
[353172032,1739626240729,-500.0,8.905e-05,2]
[353172034,1739626240744,-500.0,8.905e-05,2]
[353172035,1739626240758,-1240.66,8.905e-05,2]
[353172037,1739626240772,-500.0,8.905e-05,2]
[353172041,1739626240789,-500.0,8.905e-05,2]
[353172043,1739626240804,-240.74805594,8.905e-05,2]
[353172049,1739626240851,-259.25194406,8.905e-05,2]
[353172051,1739626240864,-1165.59,8.905e-05,2]
[353172054,1739626240874,-1025.58,8.905e-05,2]
[353172055,1739626240886,-212.52268403,8.905e-05,2]
[353172056,1739626240901,-690.65,8.905e-05,2]
[353172057,1739626240915,-500.0,8.905e-05,2]
[353172058,1739626240928,-737.13,8.905e-05,2]
[353172059,1739626240940,-500.0,8.905e-05,2]
[353172060,1739626240953,-500.0,8.905e-05,2]
[353172061,1739626240966,-500.0,8.905e-05,2]
[353172062,1739626240977,-698.76,8.905e-05,2]
[353172063,1739626240988,-703.68,8.905e-05,2]
[353172064,1739626241007,-500.0,8.905e-05,2]
[353172065,1739626241021,-500.0,8.905e-05,2]
[353172066,1739626241034,-613.09,8.905e-05,2]
[353172067,1739626241047,-782.0,8.905e-05,2]
[353172068,1739626241060,-919.88,8.905e-05,2]
[353172069,1739626241073,-743.07,8.905e-05,2]
[353172070,1739626241086,-1004.46,8.905e-05,2]
[353172071,1739626241098,-501.51314997,8.905e-05,2]
[353172072,1739626241111,-500.0,8.905e-05,2]
[353172073,1739626241123,-500.0,8.905e-05,2]
[353172074,1739626241136,-500.0,8.905e-05,2]
[353172075,1739626241148,-769.66,8.905e-05,2]
[353172076,1739626241160,-716.2,8.905e-05,2]
[353172077,1739626241172,-500.0,8.905e-05,2]
[353172078,1739626241184,-557.04,8.905e-05,2]
[353172079,1739626241196,-122.54334246,8.905e-05,2]
[353172094,1739626243666,-377.45665754,8.905e-05,2]
[353172095,1739626243676,-500.0,8.905e-05,2]
[353172096,1739626243685,-1223.61,8.905e-05,2]
[353172097,1739626243695,-500.0,8.905e-05,2]
[353172098,1739626243704,-500.0,8.905e-05,2]
[353172099,1739626243713,-500.0,8.905e-05,2]
[353172100,1739626243724,-500.0,8.905e-05,2]
[353172101,1739626243735,-500.0,8.905e-05,2]
[353172102,1739626243747,-291.80128598,8.905e-05,2]
[353172103,1739626243756,-500.0,8.905e-05,2]
[353172104,1739626243766,-500.0,8.905e-05,2]
[353172105,1739626243775,-500.0,8.905e-05,2]
[353172106,1739626243786,-500.0,8.905e-05,2]
[353172107,1739626243796,-24.98268207,8.905e-05,2]
[353172168,1739626246436,-475.01731793,8.905e-05,2]
[353172170,1739626246448,-500.0,8.905e-05,2]
[353172172,1739626246460,-500.0,8.905e-05,2]
[353172174,1739626246471,-500.0,8.905e-05,2]
[353172176,1739626246482,-743.5,8.905e-05,2]
[353172178,1739626246494,-500.0,8.905e-05,2]
[353172180,1739626246505,-1264.21,8.905e-05,2]
[353172183,1739626246516,-1266.34,8.905e-05,2]
[353172185,1739626246526,-115.9850722,8.905e-05,2]
[353172186,1739626246540,-384.0149278,8.905e-05,2]
[353172187,1739626246550,-500.0,8.905e-05,2]
[353172188,1739626246561,-1023.83,8.905e-05,2]
[353172189,1739626246572,-500.0,8.905e-05,2]
[353172190,1739626246583,-500.0,8.905e-05,2]
[353172191,1739626246593,-500.0,8.905e-05,2]
[353172192,1739626246603,-45.20171927,8.905e-05,2]
[353172193,1739626246620,-454.79828073,8.905e-05,2]
[353172194,1739626246631,-500.0,8.905e-05,2]
[353172195,1739626246640,-196.20171927,8.905e-05,2]
[353172196,1739626260686,5000.0,8.845e-05,2]
[353172198,1739626268809,1039.20757095,8.845e-05,2]
[353172199,1739626366068,2530.4834819,8.219e-05,2]
[353172202,1739626457950,5000.0,8.843e-05,2]
[353172203,1739626473265,3960.79242905,8.843e-05,2]
[353172204,1739626601250,500.0,0.00017808,30]
[353172205,1739626602013,7747.36401725,0.00018,30]
[353172206,1739626688390,1434.18,0.00019,120]
[353172207,1739626706156,204.0508015,7.907e-05,2]
[353172212,1739626811246,483.77212944,8.527e-05,2]
[353172213,1739626847278,24900.0,7.908e-05,2]
[353172217,1739627205092,34610.6721712,7.97e-05,2]
[353172260,1739627432755,-1000.0,8.9e-05,2]
[353172262,1739627432765,-300.0,8.9e-05,2]
[353172264,1739627432775,-500.0,8.901e-05,2]
[353172266,1739627432784,-1835.74,8.901e-05,2]
[353172268,1739627432794,-1208.81,8.901e-05,2]
[353172270,1739627432803,-888.53,8.901e-05,2]
[353172272,1739627432813,-500.0,8.901e-05,2]
[353172274,1739627432822,-741.28,8.902e-05,2]
[353172276,1739627432831,-635.42,8.902e-05,2]
[353172278,1739627432841,-653.86,8.902e-05,2]
[353172280,1739627432850,-1188.97,8.902e-05,2]
[353172282,1739627432860,-1117.02,8.902e-05,2]
[353172285,1739627432869,-661.87,8.902e-05,2]
[353172288,1739627432879,-500.0,8.902e-05,2]
[353172291,1739627432888,-503.9305911,8.902e-05,2]
[353172318,1739627433038,-165.7094089,8.902e-05,2]
[353172320,1739627433048,-330.27635412,8.902e-05,2]
[353172322,1739627433058,-962.6,8.902e-05,2]
[353172324,1739627433068,-749.42,8.902e-05,2]
[353172326,1739627433078,-500.0,8.902e-05,2]
[353172328,1739627433088,-712.11,8.902e-05,2]
[353172330,1739627433098,-500.0,8.902e-05,2]
[353172332,1739627433108,-737.59,8.902e-05,2]
[353172334,1739627433118,-500.0,8.902e-05,2]
[353172336,1739627433128,-533.83,8.902e-05,2]
[353172338,1739627433138,-500.0,8.902e-05,2]
[353172340,1739627433148,-1172.63,8.902e-05,2]
[353172342,1739627433158,-500.0,8.902e-05,2]
[353172344,1739627433171,-500.0,8.902e-05,2]
[353172346,1739627433180,-712.53,8.902e-05,2]
[353172348,1739627433190,-477.24,8.902e-05,2]
[353172350,1739627433200,-500.0,8.902e-05,2]
[353172352,1739627433209,-981.17,8.902e-05,2]
[353172354,1739627433219,-1211.53,8.902e-05,2]
[353172356,1739627433229,-500.0,8.902e-05,2]
[353172358,1739627433239,-500.0,8.902e-05,2]
[353172360,1739627433250,-500.0,8.902e-05,2]
[353172362,1739627433259,-500.0,8.902e-05,2]
[353172364,1739627433269,-500.0,8.902e-05,2]
[353172365,1739627433280,-471.37753631,8.902e-05,2]
[353172367,1739627433289,-1042.87,8.902e-05,2]
[353172368,1739627433299,-500.0,8.902e-05,2]
[353172369,1739627433308,-2372.82,8.902e-05,2]
[353172370,1739627433318,-500.0,8.902e-05,2]
[353172371,1739627433328,-500.0,8.902e-05,2]
[353172372,1739627433339,-599.85,8.902e-05,2]
[353172373,1739627433349,-500.0,8.902e-05,2]
[353172374,1739627433358,-500.0,8.902e-05,2]
[353172375,1739627433368,-500.0,8.902e-05,2]
[353172376,1739627433377,-1700.31,8.902e-05,2]
[353172377,1739627433387,-500.0,8.902e-05,2]
[353172378,1739627433397,-477.99436319,8.902e-05,2]
[353172379,1739627433407,-500.0,8.902e-05,2]
[353172380,1739627433416,-3812.32,8.902e-05,2]
[353172381,1739627433426,-1671.73,8.902e-05,2]
[353172382,1739627433436,-735.46,8.902e-05,2]
[353172383,1739627433446,-500.0,8.902e-05,2]
[353172384,1739627433456,-500.0,8.902e-05,2]
[353172385,1739627433466,-500.0,8.902e-05,2]
[353172386,1739627433476,-544.03,8.902e-05,2]
[353172387,1739627433485,-1905.28,8.902e-05,2]
[353172388,1739627433495,-713.09,8.902e-05,2]
[353172389,1739627433505,-500.0,8.902e-05,2]
[353172390,1739627433514,-608.53,8.902e-05,2]
[353172391,1739627433524,-2214.26,8.902e-05,2]
[353172392,1739627433534,-500.0,8.902e-05,2]
[353172393,1739627433543,-500.0,8.902e-05,2]
[353172395,1739627433552,-500.0,8.902e-05,2]
[353172397,1739627433562,-500.0,8.902e-05,2]
[353172399,1739627433571,-6222.92,8.902e-05,2]
[353172401,1739627433581,-1569.29,8.902e-05,2]
[353172403,1739627433590,-500.0,8.902e-05,2]
[353172405,1739627433600,-809.27,8.902e-05,2]
[353172407,1739627433609,-771.01,8.902e-05,2]
[353172409,1739627433619,-792.56,8.902e-05,2]
[353172411,1739627433629,-1741.32,8.902e-05,2]
[353172413,1739627433639,-1218.56,8.902e-05,2]
[353172415,1739627433648,-500.0,8.902e-05,2]
[353172417,1739627433658,-587.74,8.902e-05,2]
[353172419,1739627433668,-500.0,8.902e-05,2]
[353172421,1739627433678,-225.86990255,8.902e-05,2]
[353172423,1739627433688,-500.0,8.902e-05,2]
[353172425,1739627433697,-500.0,8.902e-05,2]
[353172427,1739627433707,-3265.95,8.902e-05,2]
[353172429,1739627433717,-500.0,8.902e-05,2]
[353172431,1739627433726,-1050.15,8.902e-05,2]
[353172433,1739627433735,-1173.42,8.902e-05,2]
[353172435,1739627433745,-783.81,8.902e-05,2]
[353172437,1739627433754,-1645.9,8.902e-05,2]
[353172439,1739627433763,-725.29785458,8.902e-05,2]
[353172490,1739627438554,-846.32214542,8.902e-05,2]
[353172491,1739627438563,-500.0,8.902e-05,2]
[353172492,1739627438572,-577.17,8.902e-05,2]
[353172493,1739627438581,-535.26937447,8.902e-05,2]
[353172494,1739627438590,-2328.07,8.902e-05,2]
[353172495,1739627438599,-500.0,8.902e-05,2]
[353172496,1739627438608,-500.0,8.902e-05,2]
[353172497,1739627438618,-500.0,8.902e-05,2]
[353172498,1739627438627,-2628.35989091,8.902e-05,2]
[353172499,1739627438638,-695.17649006,8.902e-05,2]
[353172500,1739627438649,-973.14361903,8.902e-05,2]
[353172501,1739627438659,-376.4139857,8.902e-05,2]
[353172502,1739627438678,-586.48494287,8.902e-05,2]
[353173094,1739627446160,197.49719213,8.8e-05,2]
[353173145,1739627446645,-395.22327585,8.902e-05,2]
[353173147,1739627446657,-2985.88779558,8.902e-05,2]
[353173149,1739627446667,-500.0,8.902e-05,2]
[353173151,1739627446678,-1170.27,8.902e-05,2]
[353173153,1739627446688,-500.0,8.902e-05,2]
[353173155,1739627446698,-524.55,8.902e-05,2]
[353173157,1739627446708,-500.0,8.902e-05,2]
[353173159,1739627446718,-500.0,8.902e-05,2]
[353173161,1739627446728,-500.0,8.902e-05,2]
[353173163,1739627446738,-3636.53,8.902e-05,2]
[353173164,1739627446749,-10337.97,8.902e-05,2]
[353173165,1739627446761,-1912.07,8.902e-05,2]
[353173166,1739627446775,-500.0,8.902e-05,2]
[353173167,1739627446785,-500.0,8.902e-05,2]
[353173168,1739627446795,-1433.96,8.902e-05,2]
[353173170,1739627446804,-1943.58,8.902e-05,2]
[353173172,1739627446814,-500.0,8.902e-05,2]
[353173173,1739627446824,-2502.95,8.902e-05,2]
[353173174,1739627446833,-1970.52,8.902e-05,2]
[353173175,1739627446844,-1629.46,8.902e-05,2]
[353173176,1739627446854,-500.0,8.902e-05,2]
[353173177,1739627446863,-40316.65,8.902e-05,2]
[353173178,1739627446873,-585.32825343,8.903e-05,2]
[353173179,1739627446883,-508.74771213,8.903e-05,2]
[353173180,1739627446892,-500.0,8.903e-05,2]
[353173181,1739627446902,-502.80811605,8.903e-05,2]
[353173182,1739627446911,-500.0,8.903e-05,2]
[353173183,1739627446921,-500.0,8.903e-05,2]
[353173184,1739627446931,-706.41,8.903e-05,2]
[353173185,1739627446940,-674.36,8.903e-05,2]
[353173186,1739627446951,-500.0,8.903e-05,2]
[353173187,1739627446961,-881.55,8.903e-05,2]
[353173188,1739627446971,-515.12839617,8.903e-05,2]
[353173189,1739627446980,-587.55,8.903e-05,2]
[353173190,1739627446989,-686.36,8.903e-05,2]
[353173191,1739627446999,-500.0,8.903e-05,2]
[353173192,1739627447011,-500.0,8.903e-05,2]
[353173193,1739627447020,-500.0,8.903e-05,2]
[353173194,1739627447030,-500.0,8.903e-05,2]
[353173195,1739627447039,-500.0,8.903e-05,2]
[353173196,1739627447049,-1213.58,8.903e-05,2]
[353173197,1739627447058,-500.0,8.903e-05,2]
[353173198,1739627447068,-500.0,8.903e-05,2]
[353173199,1739627447078,-500.0,8.903e-05,2]
[353173200,1739627447088,-362.72293933,8.903e-05,2]
[353173201,1739627447098,-1821.25,8.903e-05,2]
[353173203,1739627447107,-500.0,8.903e-05,2]
[353173204,1739627447116,-1114.91,8.903e-05,2]
[353173206,1739627447126,-500.0,8.903e-05,2]
[353173208,1739627447136,-617.02,8.903e-05,2]
[353173210,1739627447145,-500.0,8.903e-05,2]
[353173212,1739627447154,-500.0,8.903e-05,2]
[353173214,1739627447167,-500.0,8.903e-05,2]
[353173216,1739627447177,-500.0,8.903e-05,2]
[353173218,1739627447187,-864.44,8.903e-05,2]
[353173220,1739627447196,-505.06601656,8.903e-05,2]
[353173222,1739627447207,-500.0,8.903e-05,2]
[353173224,1739627447216,-821.42,8.903e-05,2]
[353173226,1739627447226,-2769.38,8.903e-05,2]
[353173228,1739627447235,-1738.55,8.903e-05,2]
[353173230,1739627447248,-940.57,8.903e-05,2]
[353173232,1739627447259,-912.5,8.903e-05,2]
[353173234,1739627447269,-599.45,8.903e-05,2]
[353173236,1739627447278,-17845.61,8.903e-05,2]
[353173251,1739627447412,-1877.57,8.903e-05,2]
[353173253,1739627447425,-250.29713956,8.903e-05,2]
[353173257,1739627447446,-500.0,8.904e-05,2]
[353173259,1739627447458,-500.0,8.904e-05,2]
[353173261,1739627447468,-452.49852936,8.904e-05,2]
[353173263,1739627447479,-982.85,8.904e-05,2]
[353173265,1739627447489,-500.0,8.904e-05,2]
[353173267,1739627447500,-500.0,8.904e-05,2]
[353173270,1739627447513,-500.0,8.904e-05,2]
[353173272,1739627447523,-500.0,8.904e-05,2]
[353173274,1739627447533,-500.0,8.904e-05,2]
[353173276,1739627447543,-500.0,8.904e-05,2]
[353173278,1739627447553,-500.0,8.904e-05,2]
[353173280,1739627447564,-500.0,8.904e-05,2]
[353173282,1739627447574,-747.07,8.904e-05,2]
[353173284,1739627447585,-500.0,8.904e-05,2]
[353173286,1739627447595,-500.0,8.904e-05,2]
[353173288,1739627447605,-500.0,8.904e-05,2]
[353173290,1739627447616,-500.0,8.904e-05,2]
[353173292,1739627447626,-515.43776932,8.904e-05,2]
[353173295,1739627447637,-500.0,8.904e-05,2]
[353173297,1739627447647,-500.0,8.904e-05,2]
[353173298,1739627447657,-500.0,8.904e-05,2]
[353173301,1739627447667,-370.25510704,8.904e-05,2]
[353173303,1739627447678,-500.0,8.904e-05,2]
[353173305,1739627447687,-500.0,8.904e-05,2]
[353173307,1739627447698,-603.3,8.904e-05,2]
[353173309,1739627447707,-500.0,8.904e-05,2]
[353173311,1739627447717,-500.0,8.904e-05,2]
[353173313,1739627447727,-500.0,8.904e-05,2]
[353173315,1739627447739,-1124.94,8.904e-05,2]
[353173317,1739627447748,-500.0,8.904e-05,2]
[353173319,1739627447759,-500.0,8.904e-05,2]
[353173321,1739627447769,-500.85,8.904e-05,2]
[353173323,1739627447779,-500.0,8.904e-05,2]
[353173325,1739627447789,-500.0,8.904e-05,2]
[353173327,1739627447799,-1966.29,8.904e-05,2]
[353173329,1739627447808,-500.0,8.904e-05,2]
[353173331,1739627447819,-703.75,8.904e-05,2]
[353173334,1739627447828,-151.0,8.906e-05,2]
[353173336,1739627447838,-151.0,8.906e-05,2]
[353173338,1739627447848,-1283.21783221,8.908e-05,2]
[353173340,1739627447858,-374.99246179,8.908e-05,2]
[353173342,1739627447867,-263.376,8.908e-05,2]
[353173344,1739627447877,-545.771,8.908e-05,2]
[353173346,1739627447887,-1970.0,8.908e-05,2]
[353173348,1739627447897,-2305.0,8.908e-05,2]
[353173350,1739627447907,-396.0,8.908e-05,2]
[353173352,1739627447917,-153.0,8.908e-05,2]
[353173354,1739627447927,-151.144,8.908e-05,2]
[353173356,1739627447936,-153.968,8.916e-05,2]
[353173358,1739627447947,-231.644,8.916e-05,2]
[353173360,1739627447957,-185.082,8.916e-05,2]
[353173362,1739627447968,-150.05,8.92e-05,2]
[353173364,1739627447977,-500.0,8.92e-05,2]
[353173366,1739627447988,-500.0,8.92e-05,2]
[353173368,1739627447998,-500.0,8.92e-05,2]
[353173371,1739627448007,-150.05,8.92e-05,2]
[353173372,1739627448017,-150.05,8.92e-05,2]
[353173374,1739627448028,-152.40331612,8.92e-05,2]
[353173377,1739627448039,-150.05,8.92e-05,2]
[353173379,1739627448049,-500.0,8.92e-05,2]
[353173381,1739627448059,-500.0,8.92e-05,2]
[353173383,1739627448069,-150.05,8.92e-05,2]
[353173385,1739627448080,-150.05,8.92e-05,2]
[353173387,1739627448090,-150.05,8.92e-05,2]
[353173389,1739627448100,-150.42175569,8.92e-05,2]
[353173391,1739627448110,-975.0,8.92e-05,2]
[353173393,1739627448121,-150.05,8.92e-05,2]
[353173395,1739627448134,-150.05,8.92e-05,2]
[353173397,1739627448144,-637.0,8.92e-05,2]
[353173399,1739627448154,-150.05,8.92e-05,2]
[353173401,1739627448166,-500.0,8.92e-05,2]
[353173403,1739627448178,-500.0,8.92e-05,2]
[353173405,1739627448188,-250.29713955,8.923e-05,2]
[353173407,1739627448198,-501.56720578,8.935e-05,2]
[353173409,1739627448210,-500.0,8.943e-05,2]
[353173411,1739627448220,-500.0,8.943e-05,2]
[353173413,1739627448230,-500.0,8.943e-05,2]
[353173415,1739627448241,-500.0,8.943e-05,2]
[353173417,1739627448253,-500.0,8.943e-05,2]
[353173419,1739627448263,-160.0,8.943e-05,2]
[353173421,1739627448274,-161.0,8.943e-05,2]
[353173423,1739627448284,-210.0,8.943e-05,2]
[353173425,1739627448297,-160.030568,8.943e-05,2]
[353173427,1739627448308,-345.0,8.943e-05,2]
[353173429,1739627448318,-151.0,8.943e-05,2]
[353173430,1739627448329,-267.5162689,8.943e-05,2]
[353173431,1739627448340,-160.0,8.943e-05,2]
[353173432,1739627448350,-160.0,8.943e-05,2]
[353173434,1739627448361,-162.0,8.943e-05,2]
[353173436,1739627448371,-160.0,8.943e-05,2]
[353173438,1739627448381,-160.0,8.943e-05,2]
[353173440,1739627448392,-152.0,8.943e-05,2]
[353173442,1739627448402,-151.0,8.943e-05,2]
[353173444,1739627448413,-200.02188756,8.943e-05,2]
[353173446,1739627448423,-151.0,8.943e-05,2]
[353173448,1739627448433,-151.0,8.943e-05,2]
[353173450,1739627448443,-266.0124538,8.943e-05,2]
[353173452,1739627448454,-200.0,8.943e-05,2]
[353173454,1739627448468,-151.0,8.943e-05,2]
[353173456,1739627448478,-151.0,8.943e-05,2]
[353173458,1739627448489,-500.0,8.943e-05,2]
[353173460,1739627448500,-267.5,8.943e-05,2]
[353173462,1739627448511,-158.5,8.943e-05,2]
[353173464,1739627448522,-160.0,8.943e-05,2]
[353173466,1739627448532,-151.0,8.943e-05,2]
[353173468,1739627448542,-500.0,8.943e-05,2]
[353173470,1739627448553,-151.0,8.943e-05,2]
[353173473,1739627448565,-500.0,8.943e-05,2]
[353173474,1739627448577,-258.5,8.943e-05,2]
[353173477,1739627448587,-155.0,8.943e-05,2]
[353173479,1739627448597,-160.0,8.943e-05,2]
[353173481,1739627448607,-151.0,8.943e-05,2]
[353173483,1739627448617,-500.0,8.943e-05,2]
[353173484,1739627448627,-455.0,8.943e-05,2]
[353173485,1739627448637,-160.0,8.943e-05,2]
[353173486,1739627448649,-160.0,8.943e-05,2]
[353173487,1739627448660,-155.0,8.943e-05,2]
[353173488,1739627448671,-160.0,8.943e-05,2]
[353173489,1739627448681,-163.302,8.943e-05,2]
[353173490,1739627448692,-151.0,8.943e-05,2]
[353173491,1739627448703,-159.97,8.943e-05,2]
[353173492,1739627448715,-151.0,8.943e-05,2]
[353173493,1739627448725,-500.0,8.943e-05,2]
[353173494,1739627448736,-500.0,8.943e-05,2]
[353173495,1739627448748,-251.01228034,8.943e-05,2]
[353173496,1739627448760,-311.93088566,8.943e-05,2]
[353173497,1739627448771,-151.0,8.943e-05,2]
[353173498,1739627448782,-151.0,8.943e-05,2]
[353173499,1739627448793,-151.0,8.943e-05,2]
[353173500,1739627448803,-160.0,8.943e-05,2]
[353173501,1739627448814,-169.89489391,8.943e-05,2]
[353173502,1739627448824,-152.0,8.943e-05,2]
[353173503,1739627448834,-150.5,8.943e-05,2]
[353173504,1739627448844,-160.0,8.943e-05,2]
[353173505,1739627448854,-500.0,8.943e-05,2]
[353173506,1739627448865,-500.80430822,8.943e-05,2]
[353173507,1739627448875,-500.0,8.943e-05,2]
[353173508,1739627448886,-250.29713955,8.944e-05,2]
[353173509,1739627448896,-153.0,8.95e-05,2]
[353173510,1739627448907,-153.0,8.95e-05,2]
[353173511,1739627448918,-154.6845572,8.95e-05,2]
[353173512,1739627448929,-215.9483191,8.95e-05,2]
[353173513,1739627448938,-153.0,8.95e-05,2]
[353173514,1739627448950,-154.6845572,8.95e-05,2]
[353173515,1739627448962,-153.0,8.95e-05,2]
[353173516,1739627448973,-215.9483191,8.95e-05,2]
[353173517,1739627448983,-154.6845572,8.95e-05,2]
[353173518,1739627448994,-465.93860647,8.954e-05,2]
[353173519,1739627449005,-504.64025727,8.96e-05,2]
[353173520,1739627449015,-153.0,8.96e-05,2]
[353173521,1739627449025,-412.2350474,8.96e-05,2]
[353173522,1739627449034,-153.0,8.96e-05,2]
[353173523,1739627449044,-153.0,8.96e-05,2]
[353173524,1739627449053,-153.0,8.96e-05,2]
[353173525,1739627449063,-153.0,8.96e-05,2]
[353173526,1739627449074,-711.6357211,8.96e-05,2]
[353173527,1739627449085,-154.6845572,8.96e-05,2]
[353173528,1739627449094,-215.9483191,8.96e-05,2]
[353173530,1739627449104,-153.0,8.96e-05,2]
[353173532,1739627449114,-154.6845572,8.96e-05,2]
[353173534,1739627449123,-500.0,8.962e-05,2]
[353173536,1739627449133,-203.64920814,8.962e-05,2]
[353173538,1739627449143,-500.0,8.962e-05,2]
[353173539,1739627449154,-244.51896089,8.962e-05,2]
[353173540,1739627449164,-500.0,8.962e-05,2]
[353173541,1739627449176,-500.0,8.962e-05,2]
[353173542,1739627449186,-500.0,8.962e-05,2]
[353173543,1739627449196,-500.0,8.962e-05,2]
[353173544,1739627449207,-417.2694442,8.962e-05,2]
[353173545,1739627449217,-345.96422916,8.962e-05,2]
[353173546,1739627449227,-167904.66080649,8.963e-05,2]
[353173547,1739627449236,-281941.43266845,8.963e-05,2]
[353173548,1739627451062,790.76424936,0.00019,120]
[353173549,1739627452692,5000.0,8.843e-05,2]
[353173553,1739627512026,5000.0,8.843e-05,2]
[353173562,1739627679061,2676.2064912,8.002e-05,2]
[353173563,1739627688904,297.1451191,7.938e-05,2]
[353173564,1739627983206,175.0,0.00019,120]
[353173565,1739627987265,175.0,0.00019,120]
[353173566,1739628027997,175.72138824,8.84e-05,2]
[353173568,1739628162684,24900.0,7.906e-05,2]
[353173570,1739628218421,157.760071,7.906e-05,2]
[353173571,1739628218667,157.760071,7.919e-05,2]
[353173572,1739628218873,157.760071,7.932e-05,2]
[353173573,1739628219139,157.760071,7.945e-05,2]
[353173601,1739628632120,-300.0,8.897e-05,2]
[353173602,1739628632135,-851.51,8.898e-05,2]
[353173603,1739628632150,-500.0,8.898e-05,2]
[353173604,1739628632163,-2273.95,8.898e-05,2]
[353173605,1739628632175,-500.0,8.898e-05,2]
[353173606,1739628632190,-500.0,8.898e-05,2]
[353173607,1739628632202,-683.38,8.898e-05,2]
[353173608,1739628632216,-5963.63,8.898e-05,2]
[353173609,1739628632229,-2122.0,8.898e-05,2]
[353173610,1739628632242,-1503.9,8.898e-05,2]
[353173611,1739628632252,-1759.25,8.898e-05,2]
[353173612,1739628632265,-3129.87,8.898e-05,2]
[353173613,1739628632277,-1167.79,8.898e-05,2]
[353173614,1739628632290,-500.0,8.898e-05,2]
[353173615,1739628632304,-751.15,8.898e-05,2]
[353173616,1739628632316,-1158.45,8.898e-05,2]
[353173617,1739628632330,-500.0,8.898e-05,2]
[353173618,1739628632344,-500.0,8.898e-05,2]
[353173619,1739628632358,-500.0,8.898e-05,2]
[353173620,1739628632369,-1577.32,8.898e-05,2]
[353173621,1739628632380,-500.0,8.898e-05,2]
[353173622,1739628632390,-1506.13,8.898e-05,2]
[353173623,1739628632403,-1121.51,8.898e-05,2]
[353173624,1739628632418,-2231.07,8.898e-05,2]
[353173625,1739628632430,-500.0,8.899e-05,2]